fUST/lending_fUST_20241024
["ID","MTS","AMOUNT","RATE_DAILY","PERIOD"]
[340727334,1729731046733,-1000.0,0.00035,7]
[340727335,1729731046742,-1000.0,0.00035,7]
[340727336,1729731046753,-1000.0,0.00035,7]
[340727337,1729731046763,-1000.0,0.00035,7]
[340727338,1729731046773,-1000.0,0.00035,7]
[340727339,1729731046783,-1000.0,0.00035,7]
[340727340,1729731046792,-1641.59,0.00035,7]
[340727341,1729731046801,-500.0,0.00035,120]
[340727342,1729731046810,-3091.52371889,0.00035,120]
[340727343,1729731046820,-527.0,0.00035301,2]
[340727344,1729731046830,-1153.0,0.00035301,2]
[340727345,1729731046840,-2396.0,0.00035301,2]
[340727346,1729731046849,-153.0,0.00035452,2]
[340727347,1729731046859,-151.0,0.00035506,14]
[340727348,1729731046868,-2965.79476731,0.00035506,2]
[340727349,1729731046878,-151.0,0.00035506,14]
[340727350,1729731046887,-151.0,0.00035506,14]
[340727351,1729731046896,-151.0,0.00035506,14]
[340727352,1729731046905,-151.0,0.00035506,14]
[340727353,1729731046914,-151.0,0.00035506,14]
[340727354,1729731046923,-151.0,0.00035506,14]
[340727355,1729731046933,-151.0,0.00035506,14]
[340727356,1729731046943,-750.428692,0.00035516,2]
[340727357,1729731046952,-21054.0100637,0.00035575,5]
[340727358,1729731046961,-1505.34226457,0.00035575,5]
[340727359,1729731046971,-151.0,0.00035576,14]
[340727360,1729731046980,-160.0,0.00035583,3]
[340727361,1729731046989,-160.0,0.00035583,5]
[340727362,1729731046999,-151.0,0.00035585,14]
[340727363,1729731047009,-151.0,0.00035585,14]
[340727364,1729731047018,-151.0,0.00035585,14]
[340727365,1729731047027,-151.0,0.00035585,14]
[340727366,1729731047037,-151.0,0.00035585,14]
[340727367,1729731047047,-151.0,0.00035585,14]
[340727368,1729731047057,-151.0,0.00035585,14]
[340727369,1729731047066,-4683.848751,0.00035585,14]
[340727370,1729731047076,-163.801736,0.00035585,14]
[340727371,1729731047085,-4683.848751,0.00035585,14]
[340727372,1729731047094,-151.0,0.00035585,14]
[340727373,1729731047103,-409.738359,0.00035585,14]
[340727374,1729731047114,-409.738359,0.00035585,14]
[340727375,1729731047123,-151.0,0.00035585,14]
[340727376,1729731047134,-151.0,0.00035585,14]
[340727377,1729731047143,-151.0,0.00035585,14]
[340727378,1729731047153,-246.10116008,0.00035594,2]
[340727379,1729731047163,-84417.24794762,0.00035596,5]
[340727380,1729731047492,-351.94493685,0.00031968,2]
[340727381,1729731047502,-11188.08615388,0.00035596,5]
[340727382,1729731251216,127.54698052,0.0002031,120]
[340727383,1729731251243,175.64,0.0002031,120]
[340727384,1729731251270,175.64,0.0002031,120]
[340727385,1729731251299,81.17301948,0.0002031,120]
[340727386,1729731427434,94.46698052,0.00022,60]
[340727387,1729731427461,175.64,0.00022,60]
[340727388,1729731427490,175.64,0.00022,60]
[340727389,1729731427514,1337.16353234,0.00022,60]
[340727390,1729731427536,1493.61,0.00022,60]
[340727391,1729731427563,1493.61,0.00022,60]
[340727392,1729731427585,1493.61,0.00022,60]
[340727393,1729731427606,1493.61,0.00022,60]
[340727394,1729731427628,1493.61,0.00022,60]
[340727395,1729731427650,749.03948714,0.00022,60]
[340727399,1729731603820,500.0,0.0001,2]
[340727400,1729731605020,500.0,0.0001,2]
[340727401,1729731605408,500.0,0.0001,2]
[340727402,1729731605773,163.74671314,0.0001,2]
[340727413,1729732224808,10000.0,0.00011012,2]
[340727449,1729732232350,-163.237617,0.00013699,2]
[340727451,1729732232361,-500.39190638,0.00025204,2]
[340727457,1729732232416,-499.60809362,0.00025204,2]
[340727459,1729732232426,-200.000001,0.0002688,2]
[340727462,1729732232436,-636.99190538,0.00027397,30]
[340727464,1729732232453,-2363.00809462,0.00027397,30]
[340727466,1729732232463,-300.0,0.00029999,2]
[340727468,1729732232472,-185.0,0.00029999,2]
[340727470,1729732232482,-2179.69857946,0.0003,5]
[340727472,1729732232493,-160.609006,0.00031017,2]
[340727473,1729732232504,-250.7686079,0.000315,2]
[340727474,1729732232515,-2614.94839983,0.00032876,2]
[340727475,1729732232526,-2614.94839983,0.00032876,2]
[340727476,1729732232537,-2614.94839983,0.00032876,2]
[340727477,1729732232547,-2614.94839983,0.00032876,2]
[340727478,1729732232558,-527.0,0.00033732,2]
[340727479,1729732232569,-1151.0,0.00033732,2]
[340727480,1729732232582,-1192.0,0.00033732,2]
[340727481,1729732232595,-153.0,0.00033836,2]
[340727482,1729732232605,-200.0,0.00034698,14]
[340727483,1729732232617,-308.0008254,0.00034795,2]
[340727484,1729732232628,-302.4339226,0.00034795,2]
[340727485,1729732232639,-302.4339226,0.00034795,2]
[340727486,1729732232883,-377.25186168,0.000349,2]
[340727487,1729732232894,-500.0,0.00035,120]
[340727488,1729732232903,-151.2169613,0.00035068,2]
[340727489,1729732232913,-381.4857419,0.00035068,2]
[340727490,1729732232924,-1333.53336334,0.00035418,7]
[340727491,1729732232934,-500.0,0.000355,120]
[340727492,1729732232944,-500.0,0.000355,120]
[340727493,1729732232954,-364.79438015,0.00035506,2]
[340727494,1729732232964,-1000.0,0.00035516,2]
[340727495,1729732232974,-675.3858228,0.00035516,2]
[340727496,1729732232983,-500.0,0.0003558,30]
[340727497,1729732232993,-1063.07,0.00035586,10]
[340727498,1729732233002,-885.89,0.00035586,10]
[340727499,1729732233013,-738.24,0.00035586,10]
[340727500,1729732233023,-624.51289252,0.00035586,14]
[340727501,1729732233033,-184.57587006,0.00035594,2]
[340727502,1729732233042,-36921.8801288,0.00035596,5]
[340727510,1729732240720,1747.0,0.00011012,2]
[340727542,1729732243679,-1275.1455329,0.00035596,5]
[340727543,1729732243692,-833.30760489,0.00035596,5]
[340727544,1729732243704,-1028.39101839,0.00035596,5]
[340727545,1729732243802,-3800.18147897,0.00035596,5]
[340727546,1729732243815,-3350.89526104,0.00035596,5]
[340727583,1729732246523,-2039.82286284,0.00035596,5]
[340727584,1729732246539,-685.44791582,0.00035596,5]
[340727585,1729732246552,-93412.12418435,0.00035596,5]
[340727586,1729732246561,-13247.011928,0.00035596,5]
[340727587,1729732246572,-170.059,0.00035596,42]
[340727588,1729732246582,-150.112234,0.000356,7]
[340727589,1729732246591,-150.112233,0.000356,9]
[340727590,1729732246602,-150.112233,0.000356,8]
[340727591,1729732246613,-150.112233,0.000356,9]
[340727592,1729732246623,-150.112233,0.000356,8]
[340727593,1729732246635,-150.112233,0.000356,6]
[340727594,1729732246646,-150.112233,0.000356,8]
[340727595,1729732246658,-2899.66,0.000356,30]
[340727596,1729732246668,-40549.85902359,0.00035606,5]
[340727597,1729732246789,-24607.95733441,0.00035606,5]
[340727598,1729732246798,-10838.4643048,0.00035606,5]
[340727599,1729732246808,-500.0,0.00035606,120]
[340727600,1729732246818,-20114.85138173,0.00035616,2]
[340727601,1729732246827,-9534.01248166,0.00035616,2]
[340727602,1729732246837,-224.1411695,0.00035616,30]
[340727603,1729732246848,-500.0,0.00035616,30]
[340727604,1729732246857,-500.0,0.00035616,30]
[340727605,1729732246867,-516.23419043,0.00035616,30]
[340727606,1729732246876,-570.20345069,0.00035616,30]
[340727607,1729732246885,-500.0,0.00035616,30]
[340727608,1729732246895,-500.0,0.00035616,30]
[340727609,1729732246905,-500.0,0.00035616,30]
[340727610,1729732246914,-500.0,0.00035616,30]
[340727611,1729732246924,-512.21426975,0.00035616,30]
[340727612,1729732246933,-500.0,0.00035616,30]
[340727613,1729732246943,-500.0,0.00035616,30]
[340727614,1729732246953,-500.0,0.00035616,30]
[340727615,1729732246962,-735.09,0.00035616,30]
[340727616,1729732246972,-500.0,0.00035616,30]
[340727617,1729732246982,-1329.95,0.00035616,30]
[340727618,1729732246992,-504.70050745,0.00035616,30]
[340727619,1729732247002,-500.0,0.00035616,30]
[340727620,1729732247011,-823.83,0.00035616,30]
[340727621,1729732247021,-500.0,0.00035616,30]
[340727622,1729732247031,-500.0,0.00035616,30]
[340727623,1729732247041,-501.7556724,0.00035616,30]
[340727624,1729732247050,-300.0,0.00035616,30]
[340727625,1729732247059,-615.58001966,0.00035616,30]
[340727626,1729732247069,-500.0,0.00035616,30]
[340727627,1729732247080,-500.0,0.00035616,30]
[340727628,1729732247092,-500.0,0.00035616,30]
[340727629,1729732247104,-151.0,0.00035616,14]
[340727630,1729732247114,-1609.82,0.00035616,30]
[340727631,1729732247125,-500.0,0.00035616,30]
[340727632,1729732247139,-500.0,0.00035616,30]
[340727633,1729732247148,-500.0,0.00035616,30]
[340727634,1729732247158,-805.28,0.00035616,30]
[340727635,1729732247169,-500.0,0.00035616,30]
[340727636,1729732247178,-500.0,0.00035616,30]
[340727637,1729732247191,-500.0,0.00035616,30]
[340727638,1729732247200,-500.0,0.00035616,30]
[340727639,1729732247211,-500.0,0.00035616,30]
[340727640,1729732247223,-500.0,0.00035616,2]
[340727641,1729732247233,-500.0,0.00035616,30]
[340727642,1729732247244,-987.2,0.00035616,30]
[340727643,1729732247255,-186.25252386,0.00035616,30]
[340727644,1729732247266,-662.59,0.00035616,30]
[340727645,1729732247276,-151.0,0.00035616,14]
[340727646,1729732247286,-151.0,0.00035616,14]
[340727647,1729732247296,-170.997457,0.00035616,14]
[340727648,1729732247307,-715.53,0.00035616,30]
[340727649,1729732247318,-652.6,0.00035616,30]
[340727650,1729732247329,-500.0,0.00035616,30]
[340727651,1729732247339,-500.0,0.00035616,30]
[340727652,1729732247351,-500.0,0.00035616,30]
[340727653,1729732247361,-500.0,0.00035616,30]
[340727654,1729732247375,-500.0,0.00035616,30]
[340727655,1729732247384,-500.0,0.00035616,30]
[340727656,1729732247394,-948.3,0.00035616,30]
[340727657,1729732247403,-500.0,0.00035616,30]
[340727658,1729732247413,-500.0,0.00035616,30]
[340727659,1729732247422,-500.0,0.00035616,30]
[340727660,1729732247431,-500.0,0.00035616,30]
[340727661,1729732247440,-500.0,0.00035616,30]
[340727662,1729732247450,-502.36724536,0.00035616,30]
[340727663,1729732247460,-155.46234158,0.00035616,30]
[340727664,1729732247470,-500.0,0.00035616,30]
[340727665,1729732247479,-500.0,0.00035616,30]
[340727666,1729732247489,-646.58,0.00035616,30]
[340727667,1729732247498,-500.0,0.00035616,30]
[340727668,1729732247508,-500.0,0.00035616,30]
[340727669,1729732247737,-500.0,0.00035616,30]
[340727670,1729732247790,-518.0038246,0.00035616,30]
[340727671,1729732247800,-500.0,0.00035616,30]
[340727672,1729732247810,-500.0,0.00035616,30]
[340727673,1729732247820,-500.0,0.00035616,30]
[340727674,1729732247830,-500.0,0.00035616,30]
[340727675,1729732247843,-500.0,0.00035616,30]
[340727676,1729732247855,-500.0,0.00035616,30]
[340727677,1729732247866,-500.0,0.00035616,30]
[340727678,1729732247876,-500.0,0.00035616,30]
[340727679,1729732247885,-500.0,0.00035616,30]
[340727680,1729732247895,-500.0,0.00035616,30]
[340727681,1729732247904,-500.0,0.00035616,30]
[340727682,1729732247914,-500.0,0.00035616,30]
[340727683,1729732247924,-598.95862579,0.00035616,30]
[340727684,1729732247935,-500.0,0.00035616,30]
[340727685,1729732247946,-500.0,0.00035616,30]
[340727686,1729732247956,-500.0,0.00035616,30]
[340727687,1729732247969,-578.12,0.00035616,30]
[340727688,1729732247979,-254.0700012,0.00035616,30]
[340727689,1729732247991,-379.89329065,0.00035616,30]
[340727690,1729732248001,-500.0,0.00035616,30]
[340727691,1729732248012,-500.0,0.00035616,30]
[340727692,1729732248021,-500.0,0.00035616,30]
[340727693,1729732248030,-500.0,0.00035616,30]
[340727694,1729732248039,-516.57659642,0.00035616,30]
[340727695,1729732248049,-1008.53,0.00035616,30]
[340727696,1729732248059,-920.96,0.00035616,30]
[340727697,1729732248068,-500.0,0.00035616,30]
[340727698,1729732248078,-500.0,0.00035616,30]
[340727699,1729732248087,-500.0,0.00035616,30]
[340727700,1729732248098,-500.0,0.00035616,30]
[340727701,1729732248108,-500.0,0.00035616,30]
[340727702,1729732248118,-500.0,0.00035616,30]
[340727703,1729732248129,-374.10612471,0.00035616,7]
[340727704,1729732248139,-500.0,0.00035616,30]
[340727705,1729732248150,-500.0,0.00035616,30]
[340727706,1729732248160,-500.0,0.00035616,30]
[340727707,1729732248170,-1034.02,0.00035616,30]
[340727708,1729732248179,-993.37,0.00035616,30]
[340727709,1729732248188,-588.04,0.00035616,30]
[340727710,1729732248198,-500.0,0.00035616,30]
[340727711,1729732248207,-174.33176143,0.00035616,30]
[340727712,1729732248217,-207.4812873,0.00035616,30]
[340727713,1729732248226,-500.0,0.00035616,30]
[340727714,1729732248236,-500.0,0.00035616,30]
[340727715,1729732248246,-500.0,0.00035616,30]
[340727716,1729732248257,-500.0,0.00035616,30]
[340727717,1729732248266,-1964.65,0.00035616,30]
[340727718,1729732248276,-500.0,0.00035616,30]
[340727719,1729732248285,-500.0,0.00035616,30]
[340727720,1729732248295,-500.0,0.00035616,30]
[340727721,1729732248305,-254.64413753,0.00035616,30]
[340727722,1729732248315,-500.0,0.00035616,30]
[340727723,1729732248325,-500.0,0.00035616,5]
[340727724,1729732248335,-564.86963913,0.00035616,30]
[340727725,1729732248346,-262.90743474,0.00035616,30]
[340727726,1729732248356,-500.0,0.00035616,30]
[340727727,1729732248365,-500.0,0.00035616,30]
[340727728,1729732248378,-371.19203936,0.00035616,30]
[340727729,1729732248397,-624.16,0.00035616,30]
[340727730,1729732248409,-500.0,0.00035616,30]
[340727731,1729732248420,-500.0,0.00035616,30]
[340727732,1729732248429,-500.0,0.00035616,30]
[340727733,1729732248440,-500.0,0.00035616,30]
[340727734,1729732248452,-508.11517119,0.00035616,30]
[340727735,1729732248463,-500.0,0.00035616,30]
[340727736,1729732248473,-500.0,0.00035616,30]
[340727737,1729732248483,-500.0,0.00035616,30]
[340727738,1729732248494,-500.0,0.00035616,30]
[340727739,1729732248504,-500.0,0.00035616,30]
[340727740,1729732248514,-500.0,0.00035616,30]
[340727741,1729732248525,-500.0,0.00035616,30]
[340727742,1729732248535,-500.0,0.00035616,30]
[340727743,1729732248545,-500.0,0.00035616,30]
[340727744,1729732248556,-500.0,0.00035616,30]
[340727745,1729732248566,-500.0,0.00035616,30]
[340727746,1729732248577,-500.0,0.00035616,30]
[340727747,1729732248587,-500.0,0.00035616,2]
[340727748,1729732248598,-500.0,0.00035616,2]
[340727749,1729732248607,-500.0,0.00035616,2]
[340727750,1729732248616,-500.0,0.00035616,2]
[340727751,1729732248626,-500.0,0.00035616,30]
[340727752,1729732248635,-500.0,0.00035616,2]
[340727753,1729732248647,-500.0,0.00035616,2]
[340727754,1729732248658,-341.59753145,0.00035616,2]
[340727755,1729732405211,285.99101311,0.00026849,20]
[340727756,1729732422147,273.37336231,0.00026849,20]
[340727757,1729732430096,185.20613744,0.00026849,20]
[340727758,1729732430118,448.54278865,0.00026849,20]
[340727759,1729732438330,273.37336231,0.00026849,20]
[340727760,1729732446257,195.24738138,0.00026849,20]
[340727761,1729732446280,78.12598093,0.00026849,20]
[340727773,1729733181909,1139.03755141,0.00026849,20]
[340727774,1729733181930,860.96244859,0.00026849,20]
[340727820,1729733432746,-162.748807,0.00013699,2]
[340727821,1729733432756,-331.98568817,0.0002684,2]
[340727822,1729733432765,-1975.1803749,0.00029,30]
[340727823,1729733432774,-199.3304071,0.00029103,2]
[340727824,1729733432783,-400.0,0.00032924,2]
[340727825,1729733432792,-400.0,0.00032924,2]
[340727826,1729733432806,-24731.9070064,0.00032925,2]
[340727827,1729733432815,-153.0,0.00034493,2]
[340727828,1729733432827,-153.0,0.00034493,2]
[340727829,1729733432837,-153.903924,0.00034493,2]
[340727830,1729733432846,-200.0,0.00034758,14]
[340727831,1729733432855,-250.0,0.00035,120]
[340727832,1729733432865,-200.0,0.00035,30]
[340727833,1729733432876,-170.059,0.00035,40]
[340727834,1729733432885,-1333.53336334,0.00035,7]
[340727835,1729733432895,-584.11874246,0.00035,14]
[340727836,1729733432904,-500.0,0.00035,120]
[340727837,1729733432913,-219.26425438,0.0003526,2]
[340727838,1729733432922,-453.2384231,0.00035315,2]
[340727839,1729733432932,-153.0,0.00035315,2]
[340727840,1729733432942,-153.0,0.00035315,2]
[340727841,1729733432952,-153.0,0.00035315,2]
[340727842,1729733432962,-153.0,0.00035315,2]
[340727843,1729733432971,-153.0,0.00035315,2]
[340727844,1729733432980,-153.0,0.00035315,2]
[340727845,1729733432989,-153.0,0.00035315,2]
[340727846,1729733432999,-327.0,0.00035378,2]
[340727847,1729733433009,-1000.0,0.00035506,2]
[340727848,1729733433020,-770.4543897,0.00035516,2]
[340727849,1729733433029,-6843.23939298,0.0003557,2]
[340727850,1729733433039,-417.3860568,0.0003558,30]
[340727851,1729733433048,-500.0,0.0003558,30]
[340727852,1729733433057,-500.0,0.0003558,30]
[340727853,1729733433067,-500.0,0.0003558,30]
[340727854,1729733433076,-500.0,0.0003558,30]
[340727855,1729733433085,-500.0,0.0003558,30]
[340727856,1729733433094,-500.0,0.0003558,30]
[340727857,1729733433106,-500.0,0.0003558,30]
[340727858,1729733433115,-500.0,0.0003558,30]
[340727859,1729733433127,-500.0,0.0003558,30]
[340727860,1729733433137,-500.0,0.0003558,30]
[340727861,1729733433146,-17476.5774612,0.00035586,5]
[340727862,1729733433155,-2402.47591656,0.00035586,5]
[340727863,1729733433166,-187.3,0.00035586,3]
[340727864,1729733433175,-561.9,0.00035586,3]
[340727865,1729733433185,-615.2,0.00035586,10]
[340727866,1729733433194,-529.21,0.00035586,10]
[340727867,1729733433204,-441.01,0.00035586,10]
[340727868,1729733433213,-313.8530913,0.00035589,2]
[340727869,1729733433223,-500.0,0.00035595,7]
[340727870,1729733433232,-500.0,0.00035595,7]
[340727871,1729733433242,-500.0,0.00035595,7]
[340727872,1729733433251,-500.0,0.00035595,7]
[340727873,1729733433261,-500.0,0.00035595,7]
[340727874,1729733433270,-500.0,0.00035595,7]
[340727875,1729733433280,-271.04627979,0.00035595,7]
[340727876,1729733433289,-500.0,0.00035595,7]
[340727877,1729733433298,-500.0,0.00035595,7]
[340727878,1729733433308,-500.0,0.00035595,7]
[340727879,1729733433317,-500.0,0.00035595,7]
[340727880,1729733433326,-500.0,0.00035595,7]
[340727881,1729733433336,-500.0,0.00035595,7]
[340727882,1729733433345,-500.86989649,0.00035595,7]
[340727883,1729733433354,-500.0,0.00035595,7]
[340727884,1729733433364,-500.0,0.00035595,7]
[340727885,1729733433373,-500.0,0.00035595,7]
[340727886,1729733433383,-500.0,0.00035595,7]
[340727887,1729733433393,-500.0,0.00035595,7]
[340727888,1729733433402,-550.0,0.00035595,7]
[340727889,1729733433411,-500.0,0.00035595,7]
[340727890,1729733433420,-500.0,0.00035595,7]
[340727891,1729733433430,-455.0,0.00035595,7]
[340727892,1729733433439,-104859.464767,0.00035596,5]
[340727893,1729733433449,-14414.8554994,0.00035596,5]
[340727894,1729733433458,-154.78,0.000356,2]
[340727895,1729733433468,-49039.61050606,0.00035606,5]
[340727896,1729733433480,-1120.05886753,0.00035606,5]
[340727897,1729733433493,-5829.733324,0.00035606,5]
[340727904,1729733438816,-2118.85958843,0.00035606,5]
[340727916,1729733440685,-46751.20248098,0.00035606,5]
[340727917,1729733440695,-5070.47661701,0.00035606,5]
[340727919,1729733440708,-26161.71029829,0.00035606,5]
[340727920,1729733440717,-151.0,0.00035606,14]
[340727921,1729733440728,-151.0,0.00035606,14]
[340727922,1729733440737,-151.0,0.00035606,14]
[340727923,1729733440747,-151.0,0.00035606,14]
[340727924,1729733440756,-151.0,0.00035606,14]
[340727925,1729733440766,-151.0,0.00035606,14]
[340727926,1729733440775,-4342.600657,0.00035606,14]
[340727927,1729733440784,-4342.600657,0.00035606,14]
[340727928,1729733440794,-151.0,0.00035606,14]
[340727929,1729733440803,-381.351845,0.00035606,14]
[340727930,1729733440813,-381.351845,0.00035606,14]
[340727931,1729733440822,-151.0,0.00035606,14]
[340727932,1729733440831,-151.0,0.00035606,14]
[340727933,1729733440841,-151.0,0.00035606,14]
[340727934,1729733440851,-207.127536,0.00035606,14]
[340727935,1729733440860,-151.0,0.00035606,14]
[340727936,1729733440870,-151.0,0.00035606,14]
[340727937,1729733440880,-151.0,0.00035606,14]
[340727938,1729733440890,-151.0,0.00035606,14]
[340727939,1729733440899,-151.0,0.00035606,14]
[340727940,1729733440908,-151.0,0.00035606,14]
[340727941,1729733440918,-275.497821,0.00035606,14]
[340727942,1729733440927,-184.57587006,0.00035615,2]
[340727943,1729733440937,-20426.42888974,0.00035616,2]
[340727944,1729733440945,-9303.21332571,0.00035616,2]
[340727945,1729733440955,-500.0,0.00035616,30]
[340727946,1729733440966,-500.0,0.00035616,30]
[340727947,1729733440975,-500.0,0.00035616,30]
[340727948,1729733440985,-500.0,0.00035616,30]
[340727949,1729733440994,-500.0,0.00035616,30]
[340727950,1729733441003,-500.0,0.00035616,30]
[340727951,1729733441013,-500.0,0.00035616,30]
[340727952,1729733441022,-500.0,0.00035616,30]
[340727953,1729733441032,-514.55672728,0.00035616,30]
[340727954,1729733441042,-687.43,0.00035616,30]
[340727955,1729733441053,-500.0,0.00035616,30]
[340727956,1729733441063,-500.0,0.00035616,30]
[340727957,1729733441072,-183.2248957,0.00035616,30]
[340727958,1729733441081,-500.0,0.00035616,30]
[340727959,1729733441090,-1498.93,0.00035616,30]
[340727960,1729733441100,-500.0,0.00035616,30]
[340727961,1729733441113,-500.0,0.00035616,30]
[340727962,1729733441122,-500.0,0.00035616,30]
[340727963,1729733441134,-500.0,0.00035616,30]
[340727964,1729733441144,-500.0,0.00035616,30]
[340727965,1729733441153,-206.78770996,0.00035616,30]
[340727966,1729733441167,-500.0,0.00035616,30]
[340727967,1729733441177,-500.0,0.00035616,30]
[340727968,1729733441186,-500.0,0.00035616,30]
[340727969,1729733441195,-500.0,0.00035616,30]
[340727970,1729733441205,-500.0,0.00035616,30]
[340727971,1729733441214,-500.0,0.00035616,30]
[340727972,1729733441223,-1279.27,0.00035616,30]
[340727973,1729733441232,-500.0,0.00035616,30]
[340727974,1729733441242,-500.0,0.00035616,30]
[340727975,1729733441252,-500.0,0.00035616,30]
[340727976,1729733441263,-511.87403816,0.00035616,30]
[340727977,1729733441272,-346.15291495,0.00035616,30]
[340727978,1729733441281,-407.17411535,0.00035616,30]
[340727979,1729733441290,-500.0,0.00035616,30]
[340727980,1729733441299,-566.16,0.00035616,30]
[340727981,1729733441309,-533.17,0.00035616,30]
[340727982,1729733441318,-500.0,0.00035616,30]
[340727983,1729733441328,-500.0,0.00035616,30]
[340727984,1729733441338,-500.0,0.00035616,30]
[340727985,1729733441350,-1586.05,0.00035616,30]
[340727986,1729733441360,-1943.05,0.00035616,30]
[340727987,1729733441370,-1664.82,0.00035616,30]
[340727988,1729733441381,-500.0,0.00035616,30]
[340727989,1729733441391,-500.0,0.00035616,30]
[340727990,1729733441400,-849.49,0.00035616,30]
[340727991,1729733441409,-500.0,0.00035616,30]
[340727992,1729733441419,-615.2,0.00035616,30]
[340727993,1729733441428,-500.0,0.00035616,30]
[340727994,1729733441437,-803.98,0.00035616,20]
[340727995,1729733441446,-803.98,0.00035616,20]
[340727996,1729733441455,-803.98,0.00035616,20]
[340727997,1729733441465,-500.0,0.00035616,30]
[340727998,1729733441474,-803.98,0.00035616,20]
[340727999,1729733441483,-803.98,0.00035616,20]
[340728000,1729733441493,-803.98,0.00035616,20]
[340728001,1729733441503,-803.98,0.00035616,20]
[340728002,1729733441512,-508.93155586,0.00035616,30]
[340728003,1729733441522,-803.98,0.00035616,20]
[340728004,1729733441531,-803.98,0.00035616,20]
[340728005,1729733441541,-803.98,0.00035616,20]
[340728006,1729733441550,-803.98,0.00035616,20]
[340728007,1729733441559,-803.98,0.00035616,20]
[340728008,1729733441568,-803.98,0.00035616,20]
[340728009,1729733441577,-803.98,0.00035616,20]
[340728010,1729733441586,-803.98,0.00035616,20]
[340728011,1729733441596,-803.98,0.00035616,20]
[340728012,1729733441606,-803.98,0.00035616,20]
[340728013,1729733441615,-803.98,0.00035616,20]
[340728014,1729733441626,-803.98,0.00035616,20]
[340728015,1729733441640,-803.98,0.00035616,20]
[340728016,1729733441650,-500.0,0.00035616,30]
[340728017,1729733441661,-803.98,0.00035616,20]
[340728018,1729733441672,-803.98,0.00035616,20]
[340728019,1729733441682,-803.98,0.00035616,20]
[340728020,1729733441691,-500.0,0.00035616,30]
[340728021,1729733441707,-804.18685775,0.00035616,20]
[340728022,1729733441724,-500.0,0.00035616,30]
[340728023,1729733441738,-500.0,0.00035616,30]
[340728024,1729733441750,-500.0,0.00035616,30]
[340728025,1729733441765,-931.51,0.00035616,30]
[340728026,1729733441777,-511.71026634,0.00035616,30]
[340728027,1729733441792,-500.0,0.00035616,30]
[340728028,1729733441806,-500.0,0.00035616,30]
[340728029,1729733441820,-500.0,0.00035616,30]
[340728030,1729733441835,-500.0,0.00035616,30]
[340728031,1729733441850,-500.0,0.00035616,30]
[340728032,1729733441864,-500.0,0.00035616,30]
[340728033,1729733441876,-500.0,0.00035616,30]
[340728034,1729733441894,-500.0,0.00035616,30]
[340728035,1729733441907,-500.0,0.00035616,30]
[340728036,1729733441921,-229.24,0.00035616,7]
[340728037,1729733441932,-500.0,0.00035616,30]
[340728038,1729733441946,-500.0,0.00035616,30]
[340728039,1729733441960,-500.0,0.00035616,30]
[340728040,1729733441973,-731.62,0.00035616,30]
[340728041,1729733441987,-500.0,0.00035616,30]
[340728042,1729733442001,-500.0,0.00035616,30]
[340728043,1729733442015,-500.0,0.00035616,30]